fUSD/lending_fUSD_20240906
["ID","MTS","AMOUNT","RATE_DAILY","PERIOD"]
[337383681,1725635475896,-2028.03,0.00014794,2]
[337383683,1725635475905,-995.22,0.00014794,2]
[337383685,1725635475914,-566.49,0.00014794,2]
[337383687,1725635475923,-1662.07,0.00014794,2]
[337383689,1725635475932,-500.0,0.00014794,2]
[337383691,1725635475941,-3009.249331,0.00014794,2]
[337383693,1725635475950,-1498.18,0.00014794,2]
[337383695,1725635475959,-995.22,0.00014794,2]
[337383697,1725635475968,-566.49,0.00014794,2]
[337383699,1725635475978,-500.0,0.00014794,2]
[337383701,1725635475987,-1662.07,0.00014794,2]
[337383703,1725635475997,-949.9,0.00014794,2]
[337383705,1725635476006,-1498.18,0.00014794,2]
[337383707,1725635476015,-552.68549205,0.00014794,2]
[337383709,1725635476024,-566.49,0.00014794,2]
[337383711,1725635476033,-995.22,0.00014794,2]
[337383713,1725635476043,-500.0,0.00014794,2]
[337383715,1725635476052,-1662.07,0.00014794,2]
[337383716,1725635476062,-1498.18,0.00014794,2]
[337383718,1725635476071,-949.9,0.00014794,2]
[337383720,1725635476080,-566.49,0.00014794,2]
[337383722,1725635476089,-500.0,0.00014794,2]
[337383724,1725635476099,-1662.07,0.00014794,2]
[337383726,1725635476108,-500.0,0.00014794,2]
[337383728,1725635476117,-1498.18,0.00014794,2]
[337383730,1725635476127,-949.9,0.00014794,2]
[337383732,1725635476136,-566.49,0.00014794,2]
[337383734,1725635476145,-500.0,0.00014794,2]
[337383736,1725635476155,-1662.07,0.00014794,2]
[337383738,1725635476164,-1498.18,0.00014794,2]
[337383739,1725635476173,-949.9,0.00014794,2]
[337383741,1725635476182,-566.49,0.00014794,2]
[337383743,1725635476191,-536.0703992,0.00014794,2]
[337383745,1725635476201,-1662.07,0.00014794,2]
[337383747,1725635476210,-1498.18,0.00014794,2]
[337383749,1725635476219,-949.9,0.00014794,2]
[337383751,1725635476231,-566.49,0.00014794,2]
[337383753,1725635476240,-1662.07,0.00014794,2]
[337383755,1725635476250,-1498.18,0.00014794,2]
[337383757,1725635476260,-949.9,0.00014794,2]
[337383759,1725635476268,-566.49,0.00014794,2]
[337383761,1725635476278,-1498.18,0.00014794,2]
[337383763,1725635476288,-1662.07,0.00014794,2]
[337383765,1725635476297,-949.9,0.00014794,2]
[337383767,1725635476307,-566.49,0.00014794,2]
[337383769,1725635476316,-1498.18,0.00014794,2]
[337383771,1725635476326,-1662.07,0.00014794,2]
[337383773,1725635476335,-949.9,0.00014794,2]
[337383774,1725635476344,-566.49,0.00014794,2]
[337383776,1725635476353,-1498.18,0.00014794,2]
[337383777,1725635476363,-1662.07,0.00014794,2]
[337383778,1725635476372,-542.03,0.00014794,2]
[337383779,1725635476383,-949.9,0.00014794,2]
[337383780,1725635476392,-335.58933409,0.00014794,2]
[337383781,1725635476403,-566.49,0.00014794,2]
[337383782,1725635476412,-1498.18,0.00014794,2]
[337383783,1725635476424,-1662.07,0.00014794,2]
[337383784,1725635476434,-542.03,0.00014794,2]
[337383785,1725635476444,-949.9,0.00014794,2]
[337383786,1725635476454,-1498.18,0.00014794,2]
[337383787,1725635476463,-1662.07,0.00014794,2]
[337383788,1725635476473,-542.03,0.00014794,2]
[337383789,1725635476490,-949.9,0.00014794,2]
[337383790,1725635476499,-1662.07,0.00014794,2]
[337383791,1725635476508,-542.03,0.00014794,2]
[337383792,1725635476517,-949.9,0.00014794,2]
[337383793,1725635476526,-1834.08,0.00014794,2]
[337383794,1725635476536,-1498.18,0.00014794,2]
[337383795,1725635476545,-1662.07,0.00014794,2]
[337383796,1725635476554,-542.03,0.00014794,2]
[337383797,1725635476563,-500.0,0.00014794,2]
[337383798,1725635476573,-1834.08,0.00014794,2]
[337383799,1725635476582,-1662.07,0.00014794,2]
[337383800,1725635476591,-805.14,0.00014794,2]
[337383801,1725635476600,-542.03,0.00014794,2]
[337383802,1725635476609,-500.0,0.00014794,2]
[337383803,1725635476618,-1834.08,0.00014794,2]
[337383804,1725635476627,-805.14,0.00014794,2]
[337383805,1725635476636,-500.0,0.00014794,2]
[337383806,1725635476645,-509.18,0.00014794,2]
[337383807,1725635476656,-1834.08,0.00014794,2]
[337383808,1725635476666,-805.14,0.00014794,2]
[337383809,1725635476675,-500.0,0.00014794,2]
[337383810,1725635476683,-542.03,0.00014794,2]
[337383811,1725635476692,-1834.08,0.00014794,2]
[337383812,1725635476702,-509.18,0.00014794,2]
[337383813,1725635476711,-500.0,0.00014794,2]
[337383814,1725635476719,-805.14,0.00014794,2]
[337383815,1725635476732,-1834.08,0.00014794,2]
[337383816,1725635476743,-509.18,0.00014794,2]
[337383817,1725635476752,-542.03,0.00014794,2]
[337383818,1725635476762,-1834.08,0.00014794,2]
[337383819,1725635476771,-805.14,0.00014794,2]
[337383821,1725635476780,-509.18,0.00014794,2]
[337383822,1725635476789,-542.03,0.00014794,2]
[337383824,1725635476798,-500.0,0.00014794,2]
[337383826,1725635476810,-1834.08,0.00014794,2]
[337383828,1725635476819,-805.14,0.00014794,2]
[337383830,1725635476828,-509.18,0.00014794,2]
[337383832,1725635476837,-1105.42,0.00014794,2]
[337383834,1725635476846,-542.03,0.00014794,2]
[337383836,1725635476855,-500.0,0.00014794,2]
[337383838,1725635476864,-1834.08,0.00014794,2]
[337383840,1725635476873,-805.14,0.00014794,2]
[337383841,1725635476881,-509.18,0.00014794,2]
[337383843,1725635476891,-1105.42,0.00014794,2]
[337383845,1725635476900,-542.03,0.00014794,2]
[337383848,1725635476909,-500.0,0.00014794,2]
[337383850,1725635476919,-1834.08,0.00014794,2]
[337383851,1725635476928,-805.14,0.00014794,2]
[337383853,1725635476938,-509.18,0.00014794,2]
[337383855,1725635476948,-1105.42,0.00014794,2]
[337383857,1725635476957,-500.0,0.00014794,2]
[337383859,1725635476967,-805.14,0.00014794,2]
[337383861,1725635476982,-1834.08,0.00014794,2]
[337383863,1725635476992,-542.03,0.00014794,2]
[337383865,1725635477001,-509.18,0.00014794,2]
[337383867,1725635477011,-1105.42,0.00014794,2]
[337383869,1725635477020,-805.14,0.00014794,2]
[337383871,1725635477029,-1834.08,0.00014794,2]
[337383873,1725635477039,-509.18,0.00014794,2]
[337383875,1725635477048,-542.03,0.00014794,2]
[337383877,1725635477057,-601.46,0.00014794,2]
[337383879,1725635477067,-1105.42,0.00014794,2]
[337383881,1725635477077,-805.14,0.00014794,2]
[337383883,1725635477086,-542.03,0.00014794,2]
[337383885,1725635477095,-509.18,0.00014794,2]
[337383887,1725635477105,-500.0,0.00014794,2]
[337383889,1725635477115,-500.0,0.00014794,2]
[337383891,1725635477124,-1105.42,0.00014794,2]
[337383893,1725635477133,-805.14,0.00014794,2]
[337383895,1725635477143,-542.03,0.00014794,2]
[337383897,1725635477153,-1834.08,0.00014794,2]
[337383898,1725635477162,-509.18,0.00014794,2]
[337383900,1725635477171,-560.82323243,0.00014794,2]
[337383902,1725635477180,-1105.42,0.00014794,2]
[337383904,1725635477190,-805.14,0.00014794,2]
[337383906,1725635477199,-542.03,0.00014794,2]
[337383908,1725635477209,-509.18,0.00014794,2]
[337383910,1725635477218,-1834.08,0.00014794,2]
[337383912,1725635477230,-500.0,0.00014794,2]
[337383914,1725635477239,-1105.42,0.00014794,2]
[337383915,1725635477249,-805.14,0.00014794,2]
[337383917,1725635477259,-542.03,0.00014794,2]
[337383919,1725635477269,-509.18,0.00014794,2]
[337383921,1725635477279,-1834.08,0.00014794,2]
[337383923,1725635477289,-1105.42,0.00014794,2]
[337383925,1725635477298,-805.14,0.00014794,2]
[337383927,1725635477307,-509.18,0.00014794,2]
[337383929,1725635477317,-1834.08,0.00014794,2]
[337383931,1725635477327,-805.14,0.00014794,2]
[337383933,1725635477337,-1105.42,0.00014794,2]
[337383935,1725635477347,-542.03,0.00014794,2]
[337383937,1725635477356,-509.18,0.00014794,2]
[337383939,1725635477366,-1834.08,0.00014794,2]
[337383941,1725635477376,-805.14,0.00014794,2]
[337383943,1725635477386,-1105.42,0.00014794,2]
[337383945,1725635477397,-509.18,0.00014794,2]
[337383947,1725635477407,-1834.08,0.00014794,2]
[337383949,1725635477417,-500.0,0.00014794,2]
[337383951,1725635477429,-805.14,0.00014794,2]
[337383953,1725635477438,-1105.42,0.00014794,2]
[337383955,1725635477448,-509.18,0.00014794,2]
[337383957,1725635477458,-1834.08,0.00014794,2]
[337383959,1725635477468,-552.14778628,0.00014794,2]
[337383961,1725635477480,-805.14,0.00014794,2]
[337383963,1725635477491,-1105.42,0.00014794,2]
[337383965,1725635477506,-1105.42,0.00014794,2]
[337383967,1725635477516,-1105.42,0.00014794,2]
[337383969,1725635477525,-1105.42,0.00014794,2]
[337383971,1725635477534,-1105.42,0.00014794,2]
[337383973,1725635477544,-1105.42,0.00014794,2]
[337383974,1725635477553,-11762.84213324,0.0001485,2]
[337383976,1725635477562,-457.03,0.00014889,2]
[337383978,1725635477572,-500.0,0.00014889,2]
[337383980,1725635477581,-500.0,0.00014889,2]
[337383982,1725635477591,-500.0,0.00014889,2]
[337383984,1725635477601,-500.0,0.00014889,2]
[337383986,1725635477611,-500.0,0.00014889,2]
[337383988,1725635477621,-500.0,0.00014889,2]
[337383990,1725635477630,-542.03,0.00014898,2]
[337383992,1725635477640,-254.95618,0.00014899,2]
[337383994,1725635477650,-254.956177,0.00014899,2]
[337383997,1725635477664,-1253.22,0.00014899,2]
[337383998,1725635477673,-1253.22,0.00014899,2]
[337384000,1725635477683,-1253.22,0.00014899,2]
[337384002,1725635477692,-1253.22,0.00014899,2]
[337384004,1725635477703,-1253.45633441,0.00014899,2]
[337384006,1725635477711,-1633.07,0.00014899,2]
[337384008,1725635477721,-1633.07,0.00014899,2]
[337384010,1725635477731,-1633.07,0.00014899,2]
[337384012,1725635477741,-1633.07,0.00014899,2]
[337384014,1725635477752,-1633.18036351,0.00014899,2]
[337384016,1725635477762,-2626.41,0.00014899,2]
[337384018,1725635477772,-2626.41,0.00014899,2]
[337384021,1725635477782,-2626.41,0.00014899,2]
[337384023,1725635477793,-2626.41,0.00014899,2]
[337384025,1725635477803,-2626.5559774,0.00014899,2]
[337384027,1725635477812,-895.01,0.00014899,2]
[337384029,1725635477822,-895.01,0.00014899,2]
[337384031,1725635477832,-895.01,0.00014899,2]
[337384033,1725635477841,-895.01,0.00014899,2]
[337384035,1725635477850,-895.10223829,0.00014899,2]
[337384037,1725635477860,-328.09356436,0.00014899,2]
[337384039,1725635477870,-514.48,0.00014899,2]
[337384041,1725635477879,-934.34,0.00014899,2]
[337384043,1725635477889,-934.34,0.00014899,2]
[337384045,1725635477898,-934.34,0.00014899,2]
[337384047,1725635477907,-934.34,0.00014899,2]
[337384049,1725635477917,-934.57209745,0.00014899,2]
[337384050,1725635477925,-1055.03,0.00014899,2]
[337384052,1725635477934,-1055.03,0.00014899,2]
[337384054,1725635477944,-1055.03,0.00014899,2]
[337384056,1725635477953,-778.59,0.00014899,2]
[337384058,1725635477962,-1055.03,0.00014899,2]
[337384060,1725635477972,-1055.2618283,0.00014899,2]
[337384062,1725635477993,-778.59,0.00014899,2]
[337384064,1725635478003,-778.59,0.00014899,2]
[337384066,1725635478013,-778.59,0.00014899,2]
[337384068,1725635478023,-778.78990336,0.00014899,2]
[337384071,1725635478034,-1766.47,0.00014899,2]
[337384073,1725635478043,-1766.47,0.00014899,2]
[337384075,1725635478054,-631.14,0.00014899,2]
[337384076,1725635478064,-1766.47,0.00014899,2]
[337384078,1725635478074,-631.14,0.00014899,2]
[337384080,1725635478084,-1766.47,0.00014899,2]
[337384082,1725635478094,-631.14,0.00014899,2]
[337384084,1725635478104,-1766.52,0.00014899,2]
[337384086,1725635478114,-631.14,0.00014899,2]
[337384089,1725635478125,-631.20843049,0.00014899,2]
[337384091,1725635478134,-503.12,0.00014899,2]
[337384093,1725635478144,-503.12,0.00014899,2]
[337384095,1725635478154,-503.12,0.00014899,2]
[337384096,1725635478164,-503.12,0.00014899,2]
[337384098,1725635478174,-503.29598948,0.00014899,2]
[337384100,1725635478183,-1238.08,0.00014899,2]
[337384102,1725635478193,-1238.08,0.00014899,2]
[337384104,1725635478203,-1238.08,0.00014899,2]
[337384107,1725635478214,-1238.08,0.00014899,2]
[337384109,1725635478224,-1238.2092928,0.00014899,2]
[337384111,1725635478234,-544.12,0.00014899,2]
[337384113,1725635478245,-544.12,0.00014899,2]
[337384115,1725635478254,-544.12,0.00014899,2]
[337384117,1725635478264,-544.12,0.00014899,2]
[337384119,1725635478274,-544.23988579,0.00014899,2]
[337384121,1725635478284,-3115.3,0.00014899,2]
[337384123,1725635478294,-3115.3,0.00014899,2]
[337384125,1725635478304,-3115.3,0.00014899,2]
[337384127,1725635478314,-3115.3,0.00014899,2]
[337384129,1725635478324,-3115.40732094,0.00014899,2]
[337384131,1725635478333,-729.66,0.00014899,2]
[337384133,1725635478343,-729.66,0.00014899,2]
[337384135,1725635478353,-1881.96,0.00014899,2]
[337384137,1725635478364,-1881.96,0.00014899,2]
[337384139,1725635478374,-729.66,0.00014899,2]
[337384141,1725635478383,-1881.96,0.00014899,2]
[337384143,1725635478393,-729.66,0.00014899,2]
[337384145,1725635478403,-1881.96,0.00014899,2]
[337384147,1725635478412,-729.76,0.00014899,2]
[337384149,1725635478423,-1882.18327016,0.00014899,2]
[337384151,1725635478432,-500.0,0.00014899,2]
[337384153,1725635478442,-500.0,0.00014899,2]
[337384155,1725635478452,-500.0,0.00014899,2]
[337384157,1725635478461,-500.0,0.00014899,2]
[337384158,1725635478471,-160.80060572,0.00014899,2]
[337384160,1725635478488,-687.65,0.00014899,2]
[337384162,1725635478497,-687.65,0.00014899,2]
[337384164,1725635478511,-687.65,0.00014899,2]
[337384167,1725635478522,-687.65,0.00014899,2]
[337384169,1725635478533,-687.75529491,0.00014899,2]
[337384171,1725635478543,-392.34290636,0.00014899,2]
[337384173,1725635478553,-527.38,0.00014899,2]
[337384175,1725635478563,-527.38,0.00014899,2]
[337384177,1725635478573,-527.38,0.00014899,2]
[337384179,1725635478582,-527.38,0.00014899,2]
[337384181,1725635478592,-527.53403511,0.00014899,2]
[337384183,1725635478602,-500.0,0.00014899,2]
[337384185,1725635478612,-536.84239429,0.00014899,2]
[337384187,1725635478621,-1287.62,0.00014899,2]
[337384189,1725635478631,-1287.62,0.00014899,2]
[337384191,1725635478640,-1287.62,0.00014899,2]
[337384193,1725635478650,-1287.62,0.00014899,2]
[337384195,1725635478659,-1287.84321306,0.00014899,2]
[337384197,1725635478672,-540.54,0.00014899,2]
[337384199,1725635478681,-540.54,0.00014899,2]
[337384201,1725635478690,-540.54,0.00014899,2]
[337384203,1725635478701,-540.54,0.00014899,2]
[337384205,1725635478710,-540.58363014,0.00014899,2]
[337384207,1725635478721,-634.03,0.00014899,2]
[337384209,1725635478737,-634.03,0.00014899,2]
[337384211,1725635478746,-634.03,0.00014899,2]
[337384213,1725635478756,-634.03,0.00014899,2]
[337384215,1725635478766,-634.23516753,0.00014899,2]
[337384217,1725635478775,-500.0,0.00014899,2]
[337384219,1725635478785,-500.0,0.00014899,2]
[337384221,1725635478795,-500.0,0.00014899,2]
[337384223,1725635478804,-475.12561686,0.00014899,2]
[337384224,1725635478813,-546.55,0.00014899,2]
[337384226,1725635478822,-546.55,0.00014899,2]
[337384228,1725635478831,-546.55,0.00014899,2]
[337384230,1725635478841,-546.55,0.00014899,2]
[337384232,1725635478851,-546.64,0.00014899,2]
[337384234,1725635478861,-2028.03,0.00014899,2]
[337384236,1725635478871,-2028.03,0.00014899,2]
[337384238,1725635478882,-2028.03,0.00014899,2]
[337384240,1725635478893,-2028.03,0.00014899,2]
[337384242,1725635478904,-500.0,0.00014899,2]
[337384244,1725635478914,-2028.12535684,0.00014899,2]
[337384246,1725635478924,-500.0,0.00014899,2]
[337384248,1725635478934,-500.0,0.00014899,2]
[337384250,1725635478944,-616.56638027,0.00014899,2]
[337384252,1725635478954,-1498.18,0.00014899,2]
[337384254,1725635478964,-1498.18,0.00014899,2]
[337384256,1725635478974,-1498.18,0.00014899,2]
[337384258,1725635478986,-1498.18,0.00014899,2]
[337384260,1725635478997,-1498.36331313,0.00014899,2]
[337384263,1725635479007,-1834.08,0.00014899,2]
[337384265,1725635479017,-805.14,0.00014899,2]
[337384267,1725635479027,-1834.08,0.00014899,2]
[337384269,1725635479038,-805.14,0.00014899,2]
[337384271,1725635479048,-1834.08,0.00014899,2]
[337384273,1725635479058,-805.14,0.00014899,2]
[337384275,1725635479068,-805.14,0.00014899,2]
[337384277,1725635479078,-1834.08,0.00014899,2]
[337384279,1725635479088,-805.34,0.00014899,2]
[337384281,1725635479098,-1834.2,0.00014899,2]
[337384283,1725635479109,-251.95552894,0.000149,2]
[337384285,1725635479119,-31256.00984683,0.000149,2]
[337384287,1725635479129,-3683.68645543,0.000149,2]
[337384289,1725635479141,-467.3932919,0.000149,2]
[337384291,1725635479152,-349.08818346,0.000149,2]
[337384293,1725635479162,-150.21264991,0.0001494,2]
[337384295,1725635479172,-251.95552892,0.00014969,2]
[337384297,1725635479182,-298.917,0.00014969,2]
[337384299,1725635479192,-150.0,0.00014973,2]
[337384301,1725635479203,-301.0,0.0001499,7]
[337384303,1725635479213,-597.14,0.0001499,2]
[337384305,1725635479223,-1839.76,0.0001499,2]
[337384308,1725635479237,-4579.32,0.0001499,2]
[337384310,1725635479247,-3592.18,0.0001499,2]
[337384312,1725635479258,-1077.46,0.0001499,2]
[337384314,1725635479268,-596.97354497,0.0001499,2]
[337384316,1725635479278,-8599.96,0.0001499,2]
[337384318,1725635479288,-1002.04,0.0001499,2]
[337384320,1725635479299,-610.15,0.0001499,2]
[337384322,1725635479309,-1315.0,0.0001499,2]
[337384324,1725635479320,-551.5,0.0001499,2]
[337384326,1725635479330,-1903.34,0.0001499,2]
[337384328,1725635479341,-500.0,0.0001499,2]
[337384330,1725635479351,-675.35,0.0001499,2]
[337384332,1725635479361,-1045.44,0.0001499,2]
[337384334,1725635479371,-1888.25,0.0001499,2]
[337384336,1725635479382,-5100.9,0.0001499,2]
[337384338,1725635479392,-1504.94,0.0001499,2]
[337384340,1725635479402,-1770.4,0.0001499,2]
[337384342,1725635479413,-1072.2,0.0001499,2]
[337384344,1725635479424,-551.48,0.0001499,2]
[337384346,1725635479434,-1733.35,0.0001499,2]
[337384348,1725635479445,-568.32,0.0001499,2]
[337384350,1725635479455,-608.87,0.0001499,2]
[337384352,1725635479465,-995.22,0.0001499,2]
[337384354,1725635479475,-566.49,0.0001499,2]
[337384356,1725635479489,-949.9,0.0001499,2]
[337384358,1725635479500,-509.18,0.0001499,2]
[337384360,1725635479510,-5800.0,0.0001499,2]
[337384362,1725635479520,-5800.0,0.0001499,2]
[337384364,1725635479531,-542.03,0.00014997,2]
[337384366,1725635479540,-542.03,0.00014997,2]
[337384368,1725635479551,-542.03,0.00014997,2]
[337384370,1725635479562,-542.03,0.00014997,2]
[337384372,1725635479573,-542.03705616,0.00014997,2]
[337384375,1725635479583,-500.0,0.00014998,2]
[337384377,1725635479594,-500.0,0.00014998,2]
[337384379,1725635479604,-500.0,0.00014998,2]
[337384381,1725635479614,-500.0,0.00014998,2]
[337384383,1725635479625,-541.25142794,0.00014998,2]
[337384385,1725635479634,-892.63,0.00014998,2]
[337384387,1725635479644,-892.63,0.00014998,2]
[337384389,1725635479655,-892.63,0.00014998,2]
[337384391,1725635479667,-892.63,0.00014998,2]
[337384393,1725635479678,-892.80027172,0.00014998,2]
[337384395,1725635479688,-1307.6,0.00014998,2]
[337384397,1725635479699,-1212.15,0.00014998,2]
[337384399,1725635479709,-1212.15,0.00014998,2]
[337384401,1725635479719,-1212.15,0.00014998,2]
[337384403,1725635479730,-1212.15,0.00014998,2]
[337384405,1725635479741,-1212.19,0.00014998,2]
[337384407,1725635479751,-978.01,0.00014998,2]
[337384409,1725635479761,-517.57,0.00014998,2]
[337384411,1725635479771,-517.57,0.00014998,2]
[337384413,1725635479781,-517.57,0.00014998,2]
[337384415,1725635479791,-517.57,0.00014998,2]
[337384417,1725635479801,-517.71336408,0.00014998,2]
[337384419,1725635479811,-1153.89,0.00014998,2]
[337384421,1725635479820,-1153.89,0.00014998,2]
[337384423,1725635479831,-1153.89,0.00014998,2]
[337384425,1725635479840,-1153.89,0.00014998,2]
[337384427,1725635479851,-1154.05,0.00014998,2]
[337384429,1725635479861,-536.78,0.00014998,2]
[337384431,1725635479871,-1820.43,0.00014998,2]
[337384433,1725635479881,-1820.43,0.00014998,2]
[337384435,1725635479890,-1820.43,0.00014998,2]
[337384437,1725635479899,-500.0,0.00014998,2]
[337384439,1725635479909,-1820.43,0.00014998,2]
[337384441,1725635479919,-500.0,0.00014998,2]
[337384443,1725635479930,-1820.53766695,0.00014998,2]
[337384445,1725635479940,-228.62,0.00014998,2]
[337384447,1725635479950,-515.58,0.00014998,2]
[337384449,1725635479960,-500.0,0.00014998,2]
[337384451,1725635479970,-581.80180159,0.00014998,2]
[337384453,1725635479983,-1531.39,0.00014998,2]
[337384455,1725635479998,-725.0,0.00014998,2]
[337384457,1725635480008,-725.0,0.00014998,2]
[337384459,1725635480018,-725.0,0.00014998,2]
[337384460,1725635480028,-580.65,0.00014998,2]
[337384462,1725635480037,-725.0,0.00014998,2]
[337384464,1725635480049,-725.15296371,0.00014998,2]
[337384466,1725635480059,-828.47,0.00014998,2]
[337384468,1725635480068,-828.47,0.00014998,2]
[337384470,1725635480078,-828.47,0.00014998,2]
[337384471,1725635480088,-828.47,0.00014998,2]
[337384472,1725635480098,-828.50441978,0.00014998,2]
[337384473,1725635480108,-1534.67,0.00014998,2]
[337384474,1725635480118,-1534.67,0.00014998,2]
[337384475,1725635480129,-1534.67,0.00014998,2]
[337384476,1725635480139,-1534.67,0.00014998,2]
[337384477,1725635480149,-1534.75740928,0.00014998,2]
[337384478,1725635480161,-576.52,0.00014998,2]
[337384479,1725635480171,-1668.97,0.00014998,2]
[337384480,1725635480182,-1668.97,0.00014998,2]
[337384481,1725635480192,-1668.97,0.00014998,2]
[337384483,1725635480202,-1668.97,0.00014998,2]
[337384485,1725635480212,-1669.1905754,0.00014998,2]
[337384486,1725635480222,-725.06,0.00014998,2]
[337384489,1725635480236,-544.65,0.00014998,2]
[337384491,1725635480245,-1216.78,0.00014998,2]
[337384493,1725635480256,-2976.06,0.00014998,2]
[337384495,1725635480265,-1526.27,0.00014998,2]
[337384497,1725635480275,-1662.07,0.00014998,2]
[337384499,1725635480285,-1662.07,0.00014998,2]
[337384501,1725635480295,-1662.07,0.00014998,2]
[337384503,1725635480305,-1662.07,0.00014998,2]
[337384505,1725635480315,-1662.12867103,0.00014998,2]
[337384507,1725635480326,-1105.42,0.00014998,2]
[337384509,1725635480335,-5800.0,0.00014999,2]
[337384511,1725635480345,-442.90732704,0.00014999,2]
[337384513,1725635480356,-5800.0,0.00014999,2]
[337384515,1725635480366,-1000.0,0.00014999,2]
[337384517,1725635480376,-1000.0,0.00014999,2]
[337384519,1725635480386,-1000.0,0.00014999,2]
[337384521,1725635480396,-1000.0,0.00014999,2]
[337384523,1725635480406,-1000.0,0.00014999,2]
[337384525,1725635480416,-1000.0,0.00014999,2]
[337384527,1725635480426,-1000.0,0.00014999,2]
[337384529,1725635480436,-1000.0,0.00014999,2]
[337384531,1725635480446,-1000.0,0.00014999,2]
[337384533,1725635480456,-1000.0,0.00014999,2]
[337384535,1725635480467,-1000.0,0.00014999,2]
[337384537,1725635480477,-1000.0,0.00014999,2]
[337384539,1725635480491,-1000.0,0.00014999,2]
[337384541,1725635480501,-1000.0,0.00014999,2]
[337384543,1725635480511,-1002.97599793,0.00014999,2]
[337384545,1725635480521,-1000.0,0.00014999,2]
[337384547,1725635480531,-1000.0,0.00014999,2]
[337384549,1725635480542,-1000.0,0.00014999,2]
[337384551,1725635480552,-1000.0,0.00014999,2]
[337384553,1725635480562,-1000.0,0.00014999,2]
[337384554,1725635480572,-1000.0,0.00014999,2]
[337384555,1725635480582,-1000.0,0.00014999,2]
[337384557,1725635480592,-1000.0,0.00014999,2]
[337384559,1725635480602,-1000.0,0.00014999,2]
[337384561,1725635480612,-1000.0,0.00014999,2]
[337384563,1725635480621,-1000.0,0.00014999,2]
[337384565,1725635480631,-1000.0,0.00014999,2]
[337384566,1725635480641,-1000.0,0.00014999,2]
[337384568,1725635480650,-1000.0,0.00014999,2]
[337384570,1725635480661,-1000.0,0.00014999,2]
[337384572,1725635480675,-8500.0,0.00014999,2]
[337384574,1725635480685,-5800.0,0.00014999,2]
[337384576,1725635480695,-1192.04826832,0.00014999,2]
[337384578,1725635480706,-597.14,0.00014999,2]
[337384580,1725635480717,-597.14,0.00014999,2]
[337384582,1725635480727,-597.14,0.00014999,2]
[337384584,1725635480739,-597.14,0.00014999,2]
[337384586,1725635480750,-597.14740081,0.00014999,2]
[337384588,1725635480760,-1307.6,0.00014999,2]
[337384590,1725635480770,-1307.6,0.00014999,2]
[337384592,1725635480780,-1307.6,0.00014999,2]
[337384594,1725635480789,-1307.6,0.00014999,2]
[337384596,1725635480798,-1307.78706588,0.00014999,2]
[337384598,1725635480808,-978.01,0.00014999,2]
[337384600,1725635480818,-978.01,0.00014999,2]
[337384602,1725635480827,-978.01,0.00014999,2]
[337384604,1725635480837,-978.01,0.00014999,2]
[337384606,1725635480847,-978.01970073,0.00014999,2]
[337384608,1725635480857,-1839.76,0.00014999,2]
[337384610,1725635480867,-1839.76,0.00014999,2]
[337384612,1725635480877,-1839.76,0.00014999,2]
[337384614,1725635480887,-1839.76,0.00014999,2]
[337384616,1725635480897,-1839.76,0.00014999,2]